bitfinex/quotes_ETHUSD_20250110
["timestamp","ask_amount","ask_price","bid_price","bid_amount"]
[1736484419362,7.5745365,3259.2,3258.4,4.21394573]
[1736484419951,7.5745365,3259.2,3258.4,1.14497573]
[1736484420338,7.5745365,3259.2,3258.4,0.7591]
[1736484421436,5.2945365,3258.9,3258.4,0.7591]
[1736484423427,2.2945365,3258.6,3258.0,0.825]
[1736484424753,7.5745365,3258.6,3258.0,0.825]
[1736484424942,5.28,3258.6,3258.0,0.825]
[1736484425441,5.28,3258.6,3258.0,1.236755]
[1736484427354,5.28,3258.6,3258.0,0.825]
[1736484430865,5.28,3258.7,3258.0,0.825]
[1736484433740,5.28,3258.7,3258.1,0.0306918]
[1736484433935,5.28,3258.7,3258.2,3.87026]
[1736484434139,5.28,3258.7,3258.3,0.8011]
[1736484434343,5.28,3258.7,3258.5,0.8011]
[1736484436860,5.28,3259.1,3258.5,0.8011]
[1736484441486,3.0,3259.0,3258.5,0.8011]
[1736484444216,2.2945365,3258.9,3258.5,0.8011]
[1736484444509,2.2945365,3258.6,3258.2,0.8189]
[1736484447777,5.3630565,3258.9,3258.2,0.8189]
[1736484448504,3.0,3258.8,3258.2,0.8189]
[1736484448701,8.28,3258.8,3258.2,0.8189]
[1736484451599,9.64430565,3258.8,3258.2,0.8189]
[1736484451806,12.71297565,3258.8,3258.2,0.8189]
[1736484452508,3.0,3258.5,3257.7,0.7816]
[1736484456929,3.0,3258.5,3257.9,0.7816]
[1736484457087,5.28,3258.6,3257.9,3.06937]
[1736484457282,5.28,3258.6,3258.0,0.7816]
[1736484457797,3.0,3258.7,3258.0,0.7816]
[1736484458013,3.0,3258.7,3258.2,0.7816]
[1736484458198,5.28,3258.8,3258.2,0.7816]
[1736484459525,7.5745365,3258.5,3257.7,0.7816]
[1736484459713,7.5745365,3258.5,3257.5,0.7816]
[1736484459714,2.2945365,3257.8,3257.5,0.7816]
[1736484461227,3.0,3258.0,3257.5,0.7816]
[1736484462624,3.0,3258.0,3257.0,3.07026]
[1736484462827,3.0,3258.0,3255.4,0.15025313]
[1736484462828,5.2945365,3257.8,3257.1,0.7816]
[1736484462991,2.2945365,3257.5,3256.9,0.7816]
[1736484463329,3.0,3257.4,3256.9,0.7816]
[1736484468408,8.28,3257.4,3256.5,0.7514]
[1736484468620,11.34995,3257.4,3256.5,0.7514]
[1736484468807,5.2945365,3257.2,3256.5,0.7514]
[1736484472421,3.0,3257.0,3256.1,0.7931]
[1736484472740,3.0,3256.8,3256.1,0.7931]
[1736484473044,6.07055,3256.8,3256.1,0.7931]
[1736484473334,2.2945365,3256.6,3256.1,0.7931]
[1736484474342,6.07055,3256.8,3256.1,0.7931]
[1736484474343,3.0,3256.8,3256.1,0.7931]
[1736484474701,4.36448565,3256.8,3256.1,0.7931]
[1736484475640,2.2945365,3256.6,3256.1,0.7931]
[1736484475806,3.0,3256.5,3256.1,0.7931]
[1736484476638,3.0,3256.5,3255.7,0.7931]
[1736484476639,8.28,3256.5,3255.7,0.7931]
[1736484476810,2.2945365,3256.3,3255.7,0.7931]
[1736484477238,8.28,3256.5,3255.7,0.7931]
[1736484477550,0.68819152,3256.4,3255.7,0.7931]
[1736484477956,8.28,3256.5,3255.7,3.86455]
[1736484478115,8.28,3256.5,3255.8,3.07142]
[1736484478316,8.28,3256.5,3255.9,0.7931]
[1736484478951,2.2945365,3256.3,3255.4,3.1025034]
[1736484479150,3.28445365,3256.2,3255.4,0.8323]
[1736484479354,3.28445365,3256.2,3254.6,0.226]
[1736484479355,3.28445365,3256.2,3255.2,0.8323]
[1736484479553,3.28445365,3256.2,3255.1,0.8323]
[1736484479762,3.28445365,3256.2,3255.4,0.8323]
[1736484480919,3.28445365,3256.2,3255.5,0.8016]
[1736484483256,3.55,3256.4,3255.6,0.8314]
[1736484483424,3.55,3256.4,3255.6,3.90302]
[1736484484126,5.28,3256.5,3255.8,0.8314]
[1736484484634,3.0,3256.4,3255.8,0.8314]
[1736484484853,3.0,3256.4,3255.8,1.22476158]
[1736484486259,3.0,3256.4,3256.2,3.07104]
[1736484486467,5.28,3256.5,3256.3,0.797]
[1736484490696,3.0,3257.0,3256.3,0.797]
[1736484491262,2.2945365,3256.9,3256.3,0.797]
[1736484491849,3.0,3257.0,3256.3,0.797]
[1736484492758,3.0,3257.0,3256.3,3.86794]
[1736484492968,3.0,3257.0,3256.4,0.83200813]
[1736484493262,5.28,3257.5,3256.8,3.87179]
[1736484493468,5.28,3257.7,3256.8,0.8013]
[1736484493628,5.28,3257.7,3257.0,3.07025]
[1736484493946,6.07787654,3257.7,3257.0,3.07025]
[1736484494158,6.07787654,3257.7,3256.8,3.87178]
[1736484494329,3.0,3257.6,3256.8,3.87178]
[1736484494728,3.0,3257.6,3256.9,3.07039]
[1736484495356,3.0,3257.6,3257.0,0.8151]
[1736484496577,3.0,3257.6,3257.0,4.273949]
[1736484499386,3.0,3257.6,3257.0,0.8151]
[1736484499677,10.9787654,3257.6,3256.8,0.7704]
[1736484499876,0.4042289,3257.5,3256.8,0.7704]
[1736484500240,2.2945365,3257.3,3256.5,0.7704]
[1736484500446,1.09787654,3257.5,3256.6,3.07063]
[1736484502776,3.0,3257.3,3256.6,3.07063]
[1736484504213,3.0,3257.3,3256.6,3.45780343]
[1736484504373,5.28,3257.8,3257.0,0.8052]
[1736484504942,3.0,3257.7,3257.0,3.87548]
[1736484505093,3.0,3257.7,3257.0,0.8052]
[1736484505292,4.05745365,3257.7,3257.0,0.8052]
[1736484506110,2.2945365,3257.6,3256.7,0.8111]
[1736484507589,3.55,3257.5,3256.7,0.8111]
[1736484507931,6.33745365,3257.7,3256.5,0.8111]
[1736484508137,5.28,3257.7,3256.5,0.8111]
[1736484508628,3.55,3257.6,3256.7,3.07051]
[1736484510218,5.28,3257.5,3256.8,0.8177]
[1736484513051,5.28,3257.5,3256.9,3.07032]
[1736484513255,5.28,3257.5,3256.9,3.459122]
[1736484513859,5.28,3257.5,3256.8,0.8177]
[1736484514157,5.28,3257.5,3256.6,0.8032]
[1736484514361,3.0,3257.4,3256.6,0.8032]
[1736484514718,8.28,3257.4,3256.6,0.8032]
[1736484516133,8.28,3257.4,3256.6,3.87388]
[1736484516316,0.828,3257.3,3256.6,3.87388]
[1736484517252,6.1925665,3257.3,3256.3,3.87408]
[1736484519725,3.0,3257.2,3256.3,0.8032]
[1736484519934,5.28,3257.4,3256.5,3.07069]
[1736484520770,5.28,3257.4,3256.6,3.07067]
[1736484520915,3.828,3257.3,3256.6,3.07067]
[1736484523055,3.828,3257.3,3256.4,3.07085]
[1736484524849,5.28,3256.6,3255.5,3.07172]
[1736484525049,5.28,3256.6,3256.2,0.7626]
[1736484527058,5.28,3256.6,3255.9,0.7609]
[1736484527372,8.35072,3256.6,3255.6,0.7609]
[1736484528222,2.2945365,3256.4,3254.8,0.7609]
[1736484528463,3.0,3256.2,3255.3,0.7609]
[1736484530290,3.0,3255.9,3255.0,3.87487]
[1736484532551,8.28,3255.9,3255.0,3.87487]
[1736484534768,8.28,3255.9,3255.0,0.8027]
[1736484535309,8.28,3255.9,3254.8,3.07235]
[1736484535456,3.0,3255.7,3254.7,3.87514]
[1736484535780,3.0,3255.7,3255.2,3.072]
[1736484536594,3.0,3255.7,3254.7,3.87514]
[1736484536980,3.0,3255.7,3255.1,3.07208]
[1736484537664,3.0,3255.7,3254.7,0.8027]
[1736484537859,0.90876811,3255.6,3254.9,3.07222]
[1736484538261,5.2945365,3255.5,3254.6,3.07249]
[1736484539662,5.2945365,3255.5,3254.7,3.07244]
[1736484540953,3.0,3255.5,3254.5,0.03072302]
[1736484541063,3.0,3255.7,3255.0,3.07218]
[1736484541391,4.05745365,3255.7,3255.0,3.07218]
[1736484541600,9.33745365,3255.7,3255.0,3.07218]
[1736484543462,9.33745365,3255.7,3254.9,3.83968]
[1736484544289,2.2945365,3255.5,3254.9,3.07228]
[1736484544459,2.2945365,3255.5,3254.4,3.0727]
[1736484544460,2.2945365,3255.5,3254.4,0.7985]
[1736484544663,0.22945365,3255.4,3254.5,3.07265]
[1736484545099,0.22945365,3255.4,3254.6,3.07254]
[1736484545298,2.2945365,3255.5,3254.6,3.07254]
[1736484545501,2.2945365,3255.5,3254.7,3.07247]
[1736484547597,3.0,3255.4,3254.7,3.07247]
[1736484551090,8.28,3255.4,3254.7,3.07247]
[1736484551296,3.0,3255.2,3254.4,3.07268]
[1736484552055,3.0,3255.2,3254.1,0.7934]
[1736484552056,3.0,3255.2,3254.2,0.03072412]
[1736484552253,3.0,3255.2,3254.6,3.07256]
[1736484552746,5.28,3255.3,3254.7,3.07247]
[1736484552948,5.28,3255.3,3254.7,3.42710162]
[1736484555039,5.28,3255.3,3254.9,3.07229]
[1736484556521,8.28,3255.6,3254.9,3.07229]
[1736484557154,9.33745365,3255.6,3254.8,3.07237]
[1736484558127,9.33745365,3255.6,3254.7,0.03072079]
[1736484558461,9.33745365,3255.6,3254.7,3.07246]
[1736484559554,9.33745365,3255.6,3254.7,0.03072082]
[1736484559757,8.28,3255.6,3254.8,3.0723]
[1736484560753,8.28,3255.6,3254.6,3.86594]
[1736484562226,2.2945365,3255.5,3254.1,0.787]
[1736484562429,3.1225365,3255.5,3254.2,0.386008]
[1736484562644,3.1225365,3255.5,3254.4,3.07273]
[1736484563040,2.2945365,3255.2,3254.1,0.787]
[1736484564067,2.2945365,3255.2,3254.1,3.86]
[1736484564374,0.52945365,3255.1,3254.1,3.86]
[1736484564762,0.52945365,3255.1,3254.2,3.07294]
[1736484566473,0.52945365,3255.1,3254.2,3.10366637]
[1736484566777,3.0,3255.3,3254.2,3.10366637]
[1736484567354,3.0,3255.3,3254.2,3.10366636]
[1736484567553,3.0,3255.3,3254.2,3.07294]
[1736484567753,3.0,3255.3,3254.2,3.10366635]
[1736484568587,3.0,3255.1,3254.2,3.10366635]
[1736484569247,3.0,3255.1,3254.2,3.49273299]
[1736484569474,3.0,3255.1,3254.3,3.07282]
[1736484572178,5.28,3255.2,3254.5,3.07262]
[1736484572986,5.28,3255.2,3254.4,0.03072632]
[1736484573189,5.28,3255.2,3254.5,0.7954]
[1736484573511,3.0,3255.4,3254.7,3.07244]
[1736484574361,3.0,3255.4,3254.8,3.10307346]
[1736484574553,3.0,3255.4,3254.8,3.07235]
[1736484575397,3.0,3255.4,3254.7,0.386784]
[1736484575398,3.0,3255.4,3254.9,3.07228]
[1736484576599,5.28,3255.5,3254.9,3.07228]
[1736484576973,5.28,3255.5,3255.1,3.07204]
[1736484577285,5.28,3255.5,3255.2,0.31027598]
[1736484577483,8.28,3256.0,3255.1,3.07204]
[1736484578658,8.28,3256.0,3255.0,0.7533]
[1736484579002,8.28,3256.0,3255.2,3.07199]
[1736484582903,8.28,3256.0,3255.0,3.82548]
[1736484584210,8.28,3256.0,3255.1,3.07208]
[1736484584381,0.828,3255.9,3255.1,3.07208]
[1736484584783,0.828,3255.9,3255.1,3.10279742]
[1736484585183,0.828,3255.9,3255.1,3.07208]
[1736484585809,0.828,3255.9,3255.1,3.10279742]
[1736484586106,5.28,3256.0,3255.1,3.10279742]
[1736484588219,3.0,3255.9,3255.1,3.10279742]
[1736484588397,3.0,3255.9,3255.1,0.03071742]
[1736484588714,3.0,3255.9,3255.2,3.07198]
[1736484588908,3.0,3255.9,3255.2,3.45757974]
[1736484589692,3.0,3255.9,3255.2,3.07198]
[1736484595721,5.28,3256.0,3255.3,3.10260718]
[1736484601505,3.0,3256.2,3255.5,3.07171]
[1736484601742,5.28,3256.7,3255.7,0.8297]
[1736484601939,5.28,3256.7,3255.9,3.07134]
[1736484602224,5.28,3257.1,3256.2,3.07105]
[1736484602622,5.28,3257.1,3256.0,0.03070855]
[1736484602623,5.28,3257.1,3256.0,3.07123]
[1736484602838,1.135012,3257.0,3256.1,3.07112]
[1736484602999,5.28,3257.1,3256.2,0.0307075]
[1736484603204,5.28,3257.1,3256.1,3.90082]
[1736484603727,8.28,3257.1,3256.2,0.03070752]
[1736484603929,3.0,3257.0,3256.1,3.90082]
[1736484604253,5.28,3257.1,3256.2,3.07102]
[1736484604442,5.28,3257.1,3256.2,3.461092]
[1736484605214,5.28,3257.1,3256.2,3.4917993]
[1736484606653,5.28,3257.1,3256.5,3.07077]
[1736484606960,0.0075,3257.7,3256.5,3.07077]
[1736484606961,5.28,3257.5,3256.7,3.0705]
[1736484607458,5.28,3257.8,3256.6,0.03070449]
[1736484607653,5.89354726,3257.8,3256.8,3.07044]
[1736484607843,3.0,3257.7,3256.8,3.07044]
[1736484608421,3.0,3257.7,3256.6,0.03070115]
[1736484608645,3.0,3257.7,3256.7,0.7975]
[1736484608845,5.28,3257.8,3256.8,3.49107205]
[1736484609042,5.28,3257.8,3257.2,3.86753]
[1736484609246,3.0,3257.7,3257.2,3.86753]
[1736484610221,5.28,3258.2,3257.4,3.06992]
[1736484610522,5.28,3258.2,3257.5,3.37989181]
[1736484610822,3.0,3258.1,3257.5,3.37989181]
[1736484611423,3.0,3258.1,3257.5,0.31006181]
[1736484611636,3.0,3258.1,3257.3,3.06998]
[1736484611961,5.28,3258.2,3257.7,3.06963]
[1736484612331,5.28,3258.2,3257.7,3.10032301]
[1736484612644,5.28,3258.2,3257.7,3.06963]
[1736484613570,3.0,3258.6,3257.7,3.06963]
[1736484613750,3.0,3258.6,3257.7,3.376593]
[1736484614059,3.0,3258.6,3257.7,4.183693]
[1736484614437,3.0,3258.6,3257.7,1.114063]
[1736484614639,3.0,3258.6,3257.5,3.06983]
[1736484615254,3.0,3258.6,3257.6,0.83909303]
[1736484615456,3.0,3258.6,3257.6,0.8084]
[1736484616766,3.0,3258.6,3257.7,0.03069302]
[1736484617369,3.0,3258.6,3257.6,0.8084]
[1736484617564,3.0,3258.6,3257.6,1.196223]
[1736484618579,3.0,3258.6,3257.7,3.10033302]
[1736484619467,8.28,3258.6,3257.7,3.10033302]
[1736484619776,8.28,3258.6,3257.8,3.06954]
[1736484620202,5.28,3258.8,3258.0,0.8084]
[1736484620410,3.0,3258.7,3258.0,3.87773]
[1736484620612,3.0,3258.7,3258.0,0.8084]
[1736484621440,3.0,3258.7,3258.0,3.87775]
[1736484621644,3.0,3258.7,3258.1,0.3908441]
[1736484622081,3.0,3258.7,3258.1,3.4600941]
[1736484624789,3.0,3258.7,3258.2,3.06916]
[1736484624968,3.0,3258.7,3258.2,3.09984777]
[1736484625588,5.28,3258.8,3258.2,3.09984777]
[1736484625761,5.28,3258.8,3258.3,0.34906919]
[1736484625962,5.28,3258.8,3258.0,0.8084]
[1736484626283,5.28,3258.8,3258.0,3.87776]
[1736484631390,3.0,3258.9,3258.0,3.87776]
[1736484632749,3.06844,3259.0,3257.8,0.224]
[1736484632750,2.2945365,3258.8,3257.8,0.224]
[1736484632955,5.76745161,3258.8,3257.8,0.224]
[1736484633174,0.57674516,3258.7,3257.7,0.8254]
[1736484633454,3.0,3258.5,3257.7,0.8254]
[1736484634384,3.0689,3258.5,3257.7,0.8254]
[1736484634789,6.47295511,3258.7,3257.7,0.8254]
[1736484634993,3.0,3258.7,3257.8,3.06955]
[1736484635293,3.0,3258.7,3257.7,0.8254]
[1736484635455,3.0,3258.7,3257.5,1.0363]
[1736484635456,2.2945365,3258.5,3257.5,1.0363]
[1736484635663,2.2945365,3258.5,3257.2,5.31]
[1736484635664,7.5745365,3258.2,3257.3,0.8133]
[1736484635861,3.75745365,3258.1,3257.3,0.8133]
[1736484636074,3.0,3258.1,3257.3,0.8133]
[1736484637194,3.0,3258.1,3257.2,0.223]
[1736484643521,6.06928,3258.1,3257.2,0.223]
[1736484646068,7.5745365,3258.2,3257.2,0.223]
[1736484646353,6.0693,3258.1,3257.1,0.8133]
[1736484646558,6.0693,3258.1,3257.1,1.201665]
[1736484647601,3.06945,3258.0,3257.1,1.201665]
[1736484647936,3.06945,3258.0,3257.1,0.8133]
[1736484647937,3.0,3257.9,3257.1,0.8133]
[1736484648502,3.0,3258.1,3257.2,0.03069772]
[1736484648914,5.28,3258.2,3257.2,0.03069772]
[1736484649118,5.28,3258.2,3257.4,0.8019]
[1736484649359,5.28,3258.3,3257.4,0.83259557]
[1736484649557,3.0,3258.2,3257.4,1.22285713]
[1736484649915,3.0,3258.2,3257.5,3.06981]
[1736484650113,3.0,3258.2,3257.7,0.8019]
[1736484650324,5.28,3258.3,3257.7,0.8019]
[1736484655425,8.28,3258.5,3257.7,0.8019]
[1736484655626,3.0,3258.4,3257.7,0.8019]
[1736484656749,2.2945365,3258.8,3257.4,0.223]
[1736484656750,5.28,3258.8,3257.8,0.03069381]
[1736484656955,8.34843,3259.0,3257.9,3.86075]
[1736484657250,8.34843,3259.0,3258.0,0.38914438]
[1736484657655,3.0,3258.9,3258.0,0.419835]
[1736484657824,3.0,3258.9,3258.0,3.489165]
[1736484658224,3.0,3258.9,3258.0,0.419835]
[1736484658427,3.0,3258.9,3258.1,3.06926]
[1736484658625,3.0,3258.9,3257.9,3.86075]
[1736484661041,2.2945365,3258.8,3257.9,0.7913]
[1736484661459,7.5745365,3258.8,3257.9,0.7913]
[1736484662347,7.5745365,3258.8,3257.9,1.177394]
[1736484662553,5.28,3258.8,3257.9,1.20808462]
[1736484662752,5.28,3258.8,3257.9,1.177394]
[1736484663633,5.28,3258.8,3257.9,1.20808462]
[1736484663849,5.28,3258.8,3258.0,0.42775946]
[1736484665230,5.28,3258.8,3257.9,0.7913]
[1736484665632,5.28,3258.8,3257.9,3.86073]
[1736484665835,5.28,3258.8,3258.1,0.8268]
[1736484666153,5.28,3258.8,3258.3,0.8268]
[1736484667367,8.28,3258.9,3258.3,0.8268]
[1736484668343,8.28,3258.9,3258.5,0.7809]
[1736484669163,5.28,3258.9,3258.5,0.7809]
[1736484669431,5.28,3259.4,3258.5,0.81158844]
[1736484669662,5.28,3259.4,3258.6,0.8052]
[1736484669968,5.28,3259.4,3258.9,0.8052]
[1736484670177,5.28,3259.4,3259.0,0.83588015]
[1736484670468,5.28,3260.1,3259.3,0.8052]
[1736484670632,5.28,3260.1,3259.3,0.83587744]
[1736484671232,5.28,3260.1,3259.3,1.22628018]
[1736484672630,5.28,3260.1,3259.3,0.8052]
[1736484672631,5.68422511,3260.1,3259.3,0.8052]
[1736484672867,0.40422511,3260.0,3259.3,0.8052]
[1736484673069,0.40422511,3260.0,3259.3,0.83587802]
[1736484673368,0.40422511,3260.0,3259.3,0.8052]
[1736484673573,0.40422511,3260.0,3259.4,0.387343]
[1736484673758,5.28,3260.1,3259.4,0.387343]
[1736484675237,5.28,3260.1,3259.4,0.41801994]
[1736484676194,5.28,3260.1,3259.4,0.387343]
[1736484676349,3.0,3260.2,3259.4,0.387343]
[1736484676538,3.0,3260.2,3259.5,0.4260673]
[1736484677167,3.0,3260.2,3259.6,0.7783]
[1736484683201,3.40422511,3260.2,3259.6,0.7783]
[1736484683357,6.47154511,3260.2,3259.6,0.7783]
[1736484685502,3.0,3259.9,3259.2,0.7819]
[1736484686792,3.0,3259.9,3259.2,3.8501]
[1736484686955,7.5745365,3260.3,3259.4,0.7542]
[1736484687161,3.0,3260.2,3259.4,0.7542]
[1736484687755,3.0,3260.2,3259.5,0.7542]
[1736484688177,5.28,3260.7,3260.0,3.06747]
[1736484688473,3.0,3260.6,3260.2,0.7542]
[1736484689416,3.0,3260.6,3259.7,0.7542]
[1736484689557,3.06719,3260.4,3259.7,0.7542]
[1736484691294,8.28,3260.3,3259.7,0.7542]
[1736484692403,5.28,3260.3,3259.7,0.7542]
[1736484693434,2.2945365,3260.1,3259.7,0.7542]
[1736484693570,3.0,3260.0,3259.0,0.9758]
[1736484694095,6.06751,3260.0,3259.0,0.9758]
[1736484694297,6.06751,3260.0,3259.0,4.04419]
[1736484694517,3.0,3260.0,3259.0,0.7528]
[1736484694729,3.0,3259.7,3259.0,0.7528]
[1736484695083,3.0,3259.8,3259.0,0.7528]
[1736484699225,3.06776,3259.7,3259.0,0.7528]
[1736484699716,2.2945365,3259.3,3258.7,0.7625]
[1736484699879,8.3627265,3259.3,3258.7,0.7625]
[1736484700080,3.06834,3259.1,3258.7,0.7625]
[1736484700273,3.06842,3259.0,3258.2,0.7625]
[1736484700716,3.0686,3258.9,3258.2,0.7625]
[1736484701477,3.06862,3258.8,3258.2,0.7625]
[1736484702386,3.06873,3258.7,3258.2,0.7625]
[1736484702597,3.0,3258.5,3258.2,0.7625]
[1736484702914,2.2945365,3258.4,3257.7,0.7598]
[1736484703112,3.0692,3258.2,3257.7,0.7598]
[1736484703478,2.2945365,3258.4,3257.7,0.7598]
[1736484704613,6.06898,3258.5,3257.7,0.7598]
[1736484705021,3.0,3258.3,3257.7,0.7598]
[1736484705392,6.0691,3258.3,3257.7,0.7598]
[1736484706298,11.3491,3258.3,3257.7,0.7598]
[1736484709405,8.28,3258.3,3257.7,0.7598]
[1736484710588,5.28,3258.3,3257.7,1.142762]
[1736484710786,5.28,3258.3,3257.7,0.7598]
[1736484711020,8.34909,3258.3,3257.7,0.7598]
[1736484712286,3.0,3258.2,3257.7,0.7598]
[1736484712714,3.0,3258.0,3257.7,0.7598]
[1736484713026,5.28,3258.3,3257.7,0.7598]
[1736484713027,3.0,3258.2,3257.7,0.7598]
[1736484713390,6.06918,3258.2,3257.7,0.7598]
[1736484713765,0.99522352,3258.1,3257.7,0.7598]
[1736484713918,6.06918,3258.2,3257.7,0.7598]
[1736484714329,3.0,3258.0,3257.7,0.7598]
[1736484715288,3.06947,3257.9,3257.2,0.7729]
[1736484715493,8.34947,3257.9,3257.2,0.7729]
[1736484715896,2.2945365,3257.8,3257.2,0.7729]
[1736484716102,6.03745365,3257.7,3256.7,0.7729]
[1736484716430,5.3644465,3257.5,3256.7,0.7729]
[1736484717740,2.2945365,3257.5,3256.7,0.7729]
[1736484719234,3.06996,3257.4,3256.7,0.7729]
[1736484720841,3.0,3257.3,3256.7,0.7729]
[1736484723243,4.36444965,3257.3,3256.7,0.7729]
[1736484724023,8.28,3257.0,3256.7,0.7729]
[1736484724226,2.2945365,3256.9,3255.8,0.8117]
[1736484724454,3.07049,3256.8,3255.8,1.0347]
[1736484724653,3.07049,3256.8,3255.9,0.7641]
[1736484725444,2.2945365,3256.9,3255.9,0.7641]
[1736484725640,11.35033,3257.0,3256.1,0.7628]
[1736484727954,11.35033,3257.0,3256.1,0.79350823]
[1736484729556,11.35033,3257.0,3256.1,0.7628]
[1736484733840,11.35033,3257.0,3256.1,0.79350823]
[1736484734049,8.28,3257.0,3256.1,0.7628]
[1736484734374,3.0,3256.8,3256.1,0.7628]
[1736484734930,3.0,3256.8,3256.1,1.146211]
[1736484735568,3.0,3256.8,3256.2,0.7549]
[1736484736153,3.0,3256.9,3256.2,0.7549]
[1736484736358,8.28,3256.9,3256.2,0.7549]
[1736484739273,3.07054,3256.8,3256.2,0.7549]
[1736484741072,8.28,3256.9,3256.2,0.7549]
[1736484742452,8.28,3256.9,3256.2,0.7049]
[1736484742775,9.415031,3256.9,3256.2,0.7049]
[1736484743440,11.7095675,3256.9,3256.2,0.7049]
[1736484743636,3.07064,3256.7,3256.2,0.7049]
[1736484743863,3.0,3256.6,3256.2,0.7049]
[1736484744064,6.07069,3256.6,3256.2,0.7049]
[1736484744271,0.607069,3256.5,3256.2,0.7049]
[1736484744456,3.0,3256.7,3256.2,0.7049]
[1736484744655,7.5745365,3256.3,3255.0,3.0]
[1736484744843,7.5745365,3256.3,3254.7,5.31]
[1736484744844,3.0,3256.2,3255.2,3.07198]
[1736484745555,3.0,3256.2,3255.3,0.7908]
[1736484745755,3.0,3256.2,3255.5,0.7877]
[1736484750896,3.0,3256.2,3255.7,0.8216]
[1736484751057,5.28,3256.3,3255.7,0.8216]
[1736484751382,5.28,3256.8,3255.9,0.8216]
[1736484751572,3.0,3256.7,3256.1,0.8216]
[1736484751769,3.0,3256.7,3256.1,0.85230975]
[1736484752288,5.28,3256.8,3256.1,0.85230975]
[1736484752451,5.28,3256.8,3256.1,0.8216]
[1736484753162,3.0,3256.7,3256.1,0.8216]
[1736484754781,3.0,3256.7,3256.1,1.21395683]
[1736484754982,5.28,3256.8,3256.2,0.82580825]
[1736484755188,5.28,3256.8,3256.3,0.7951]
[1736484756652,5.28,3256.8,3256.4,0.03070721]
[1736484756854,5.28,3256.8,3256.5,0.8068]
[1736484757865,7.5745365,3257.5,3256.6,0.8068]
[1736484758827,3.0,3257.4,3256.6,0.8068]
[1736484759157,3.40422511,3257.4,3256.6,0.8068]
[1736484759389,3.0,3257.1,3256.6,0.8068]
[1736484759596,0.40422511,3257.3,3256.6,0.8068]
[1736484759893,1.80909627,3257.3,3256.6,0.8068]
[1736484761199,3.0,3257.4,3256.7,0.03070507]
[1736484761380,3.0,3257.4,3256.8,0.7897]
[1736484763165,5.28,3257.5,3257.0,0.7897]
[1736484763380,5.28,3257.5,3257.1,0.82039996]
[1736484763605,5.28,3258.1,3257.3,0.7897]
[1736484763818,3.0,3258.0,3257.4,0.7897]
[1736484764104,5.28,3258.1,3257.4,0.7897]
[1736484764284,3.0,3258.0,3257.6,0.754]
[1736484776618,5.28,3258.1,3257.6,0.754]
[1736484780783,5.28,3258.1,3257.6,0.78469429]
[1736484781162,3.0,3258.4,3257.6,0.78469429]
[1736484781362,4.05745365,3258.4,3257.6,0.754]
[1736484782380,3.0,3258.4,3257.6,0.78469429]
[1736484782782,3.0,3258.4,3257.6,0.754]
[1736484785289,3.0,3258.4,3257.6,0.78469431]
[1736484785464,3.0,3258.4,3257.6,0.754]
[1736484786926,6.06899,3258.4,3257.6,0.754]
[1736484787131,1.134899,3258.3,3257.6,0.754]
[1736484787431,0.05,3258.2,3257.6,0.754]
[1736484787825,6.11925,3258.2,3257.6,0.754]
[1736484788032,6.11925,3258.2,3257.1,3.07018]
[1736484788033,8.33,3257.7,3257.1,0.787]
[1736484788210,3.0,3257.5,3256.8,0.787]
[1736484788890,6.06984,3257.5,3256.8,0.787]
[1736484790412,3.0,3257.5,3256.8,0.787]
[1736484790658,3.0,3257.6,3256.8,0.787]
[1736484792208,3.0,3257.6,3256.8,3.85749]
[1736484792837,3.0,3257.6,3256.8,4.243239]
[1736484793173,3.0,3257.6,3257.0,0.7671]
[1736484794038,5.28,3257.7,3257.0,3.8374]
[1736484794237,5.28,3257.7,3257.1,0.7671]
[1736484798677,5.28,3258.0,3257.2,3.10080058]
[1736484798839,5.28,3258.0,3257.3,0.8108]
[1736484801258,3.0,3258.2,3257.4,0.8108]
[1736484801460,5.28,3258.2,3257.5,3.06975]
[1736484801765,5.28,3258.2,3257.6,0.7811]
[1736484801966,5.28,3258.2,3257.6,1.166186]
[1736484804027,0.41172511,3258.8,3258.1,3.06918]
[1736484804028,5.28,3258.8,3258.1,3.06918]
[1736484804195,5.28,3259.2,3258.3,0.7934]
[1736484804356,0.834822,3259.1,3258.3,0.7934]
[1736484804768,3.834822,3259.1,3258.3,0.7934]
[1736484804971,0.834822,3259.1,3258.3,0.7934]
[1736484805192,5.28,3259.2,3258.3,0.7934]
[1736484805603,3.05,3259.4,3258.5,0.7934]
[1736484806321,3.0,3259.4,3258.5,3.89294567]
[1736484806603,4.36924965,3259.4,3258.5,3.09954567]
[1736484806802,4.36924965,3259.4,3258.6,0.7934]
[1736484808710,6.66378615,3259.4,3258.6,0.7934]
[1736484809294,9.73187615,3259.4,3258.6,0.7934]
[1736484810365,6.66378615,3259.4,3258.6,0.7934]
[1736484811083,15.01183615,3259.4,3258.6,0.7934]
[1736484811296,0.68342752,3259.3,3258.6,0.7934]
[1736484811601,13.6425865,3259.4,3258.6,0.7934]